bitfinex/quotes_SOLUSD_20240716
["timestamp","ask_amount","ask_price","bid_price","bid_amount"]
[1721120372324,16.3982,154.78,154.69,20.0]
[1721120372519,16.3982,154.78,154.7,45.0]
[1721120372742,16.3982,154.78,154.71,20.0]
[1721120372923,16.3982,154.78,154.72,45.0]
[1721120373126,16.3982,154.78,154.73,20.0]
[1721120373351,16.3982,154.78,154.77,6.4612]
[1721120374444,16.3982,154.78,154.74,6.4621]
[1721120374658,18.01350082,154.78,154.74,6.4621]
[1721120375818,22.859,154.78,154.68,38.6]
[1721120376138,18.01349395,154.78,154.74,6.4624]
[1721120376341,18.01349395,154.78,154.69,21.28835897]
[1721120376342,16.3982,154.78,154.75,6.4619]
[1721120377429,16.3982,154.78,154.76,6.4615]
[1721120378227,16.3982,154.78,154.77,6.4612]
[1721120378846,1.61519447,154.81,154.77,6.4612]
[1721120379052,1.61519447,154.81,154.78,6.4607]
[1721120379858,16.8202956,154.82,154.8,6.4598]
[1721120380320,16.8202956,154.82,154.79,6.4602]
[1721120380526,18.43519153,154.82,154.79,6.4602]
[1721120380951,16.8202956,154.82,154.79,6.4602]
[1721120381632,16.8202956,154.82,154.79,6.4599]
[1721120381818,16.8202956,154.82,154.74,38.6]
[1721120381819,16.8202956,154.82,154.8,7.74625047]
[1721120382019,16.8202956,154.82,154.8,6.4596]
[1721120382255,16.8202956,154.82,154.81,6.4595]
[1721120382256,0.8279956,154.82,154.81,6.4595]
[1721120382458,0.8279956,154.82,154.81,26.4595]
[1721120382625,0.8279956,154.82,154.81,6.4595]
[1721120387049,0.8279956,154.82,154.8,0.5]
[1721120387252,7.2870956,154.82,154.8,0.5]
[1721120387463,17.95113963,154.81,154.8,0.5]
[1721120391757,24.41063963,154.81,154.8,0.5]
[1721120391938,17.95113963,154.81,154.8,0.5]
[1721120394434,17.95113963,154.81,154.8,6.9599]
[1721120394670,17.95113963,154.81,154.8,0.5]
[1721120395456,2.44315733,154.82,154.8,6.9599]
[1721120395648,0.8279956,154.82,154.8,6.9599]
[1721120395838,0.8279956,154.82,154.8,0.5]
[1721120397530,1.61518921,154.81,154.8,0.5]
[1721120399067,1.61518921,154.81,154.8,6.9599]
[1721120399352,2.44316317,154.82,154.8,0.5]
[1721120399579,0.8279956,154.82,154.8,0.5]
[1721120400261,7.2872956,154.82,154.8,0.5]
[1721120400570,1.61517387,154.81,154.8,0.5]
[1721120403261,2.44312627,154.82,154.81,6.4595]
[1721120403459,0.8279956,154.82,154.81,6.4595]
[1721120403859,0.8279956,154.82,154.8,0.5]
[1721120405665,0.8279956,154.82,154.81,6.4595]
[1721120407144,0.8279956,154.82,154.81,26.4595]
[1721120409770,0.8279956,154.82,154.81,6.4595]
[1721120410751,0.8279956,154.82,154.8,0.5]
[1721120411351,0.8279956,154.82,154.8,6.9598]
[1721120411671,0.8279956,154.82,154.8,0.5]
[1721120411974,1.615257,154.81,154.8,0.5]
[1721120412842,8.074757,154.81,154.8,0.5]
[1721120413071,1.615257,154.81,154.8,0.5]
[1721120419557,8.074757,154.81,154.8,0.5]
[1721120419950,53.074757,154.81,154.8,0.5]
[1721120420587,63.074757,154.81,154.8,0.5]
[1721120420758,6.4618,154.76,154.67,60.2651]
[1721120420961,1.61596954,154.75,154.71,6.4633]
[1721120421267,1.61596954,154.75,154.72,6.4631]
[1721120421654,1.61596954,154.75,154.71,6.4636]
[1721120422377,1.61596954,154.75,154.7,6.464]
[1721120422586,53.07816954,154.75,154.7,6.464]
[1721120423178,46.61596954,154.75,154.7,6.464]
[1721120423380,6.4633,154.72,154.63,16.4332]
[1721120423563,1.61651859,154.71,154.66,6.4657]
[1721120423891,1.61649515,154.7,154.65,6.4661]
[1721120424059,6.4636,154.72,154.66,6.4657]
[1721120424260,46.61654487,154.71,154.66,6.4657]
[1721120425187,46.61654487,154.71,154.67,6.4652]
[1721120425361,1.61654487,154.71,154.68,6.4648]
[1721120425562,21.61646646,154.73,154.62,6.3736]
[1721120425772,16.2409,154.71,154.59,15.9245]
[1721120425983,16.2409,154.71,154.64,6.4665]
[1721120425984,8.08128357,154.7,154.64,6.4665]
[1721120426285,6.4646,154.69,154.63,6.4667]
[1721120426484,1.61684004,154.68,154.63,6.4667]
[1721120426676,1.61687219,154.67,154.64,6.4665]
[1721120427061,1.61687219,154.67,154.58,6.3237]
[1721120427277,1.61687219,154.67,154.62,6.4671]
[1721120427486,1.61687219,154.67,154.63,6.467]
[1721120427679,15.3463,154.66,154.53,22.5599]
[1721120427876,1.61718024,154.65,154.6,6.4679]
[1721120428071,1.61715673,154.64,154.6,6.4679]
[1721120428265,1.61715673,154.64,154.55,38.6]
[1721120428466,1.61715673,154.64,154.6,6.4682]
[1721120428881,1.61715673,154.64,154.58,6.4687]
[1721120429275,8.08405673,154.64,154.58,6.4687]
[1721120429476,45.0,154.63,154.58,6.4687]
[1721120429671,1.61737805,154.62,154.58,6.4687]
[1721120430373,1.61737805,154.62,154.57,6.4695]
[1721120430582,8.08477805,154.62,154.58,20.0]
[1721120431065,8.08477805,154.62,154.57,20.0]
[1721120431971,8.08477805,154.62,154.57,26.4695]
[1721120433000,1.61737805,154.62,154.57,26.4695]
[1721120433374,11.61737805,154.62,154.57,20.0]
[1721120433581,11.61737805,154.62,154.51,20.0]
[1721120433879,1.61737805,154.62,154.58,6.469]
[1721120434587,6.4679,154.61,154.56,6.4695]
[1721120434792,1.617782,154.6,154.57,20.0]
[1721120434995,8.086082,154.6,154.57,20.0]
[1721120435594,8.086082,154.6,154.5,6.3274]
[1721120435595,6.4687,154.59,154.56,20.0]
[1721120435795,6.4687,154.59,154.43,15.0]
[1721120435796,1.61782902,154.58,154.54,26.4707]
[1721120435999,1.61786707,154.57,154.54,26.4707]
[1721120436201,1.61786707,154.57,154.54,20.0]
[1721120436573,8.08746707,154.57,154.54,20.0]
[1721120436772,8.08746707,154.57,154.53,20.0]
[1721120436983,6.4696,154.57,154.53,20.0]
[1721120437394,6.4692,154.58,154.53,20.0]
[1721120437611,1.61794562,154.57,154.53,20.0]
[1721120438100,8.08744562,154.57,154.53,20.0]
[1721120438978,1.61794562,154.57,154.53,20.0]
[1721120439167,10.0,154.58,154.49,20.0]
[1721120439383,8.08808151,154.57,154.51,6.4718]
[1721120439614,8.08808151,154.57,154.52,20.0]
[1721120440574,1.61818151,154.57,154.52,20.0]
[1721120440783,6.4707,154.55,154.51,20.0]
[1721120440996,1.61817969,154.54,154.51,20.0]
[1721120441301,1.61817969,154.54,154.51,26.4719]
[1721120441504,8.0877217,154.57,154.51,26.4719]
[1721120442205,8.0877217,154.57,154.51,20.0]
[1721120442206,6.4701,154.56,154.51,20.0]
[1721120442410,8.08852748,154.55,154.51,20.0]
[1721120443119,1.61812748,154.55,154.51,20.0]
[1721120444511,8.08852748,154.55,154.51,20.0]
[1721120444821,32.95812043,154.54,154.51,20.0]
[1721120445016,6.4716,154.52,154.51,20.0]
[1721120445706,6.4722,154.51,154.46,20.0]
[1721120445909,8.09109701,154.5,154.47,45.0]
[1721120446110,8.09109701,154.5,154.48,20.0]
[1721120446426,1.61859701,154.5,154.49,45.0]
[1721120446605,1.61843938,154.5,154.49,65.0]
[1721120447327,8.09083938,154.5,154.49,65.0]
[1721120447705,1.61843938,154.5,154.49,65.0]
[1721120447916,6.4722,154.51,154.49,65.0]
[1721120448106,8.0907545,154.5,154.49,65.0]
[1721120448441,1.6183545,154.5,154.49,65.0]
[1721120448619,1.61841726,154.5,154.49,65.0]
[1721120450522,1.61833806,154.52,154.49,65.0]
[1721120450710,1.61834269,154.51,154.5,20.0]
[1721120451630,16.0656,154.5,154.49,45.0]
[1721120451797,6.4754,154.43,154.35,6.3686]
[1721120452004,6.4754,154.43,154.37,6.4779]
[1721120453099,6.4754,154.43,154.38,6.4772]
[1721120453829,1.61940261,154.42,154.38,6.4772]
[1721120454038,1.61940261,154.42,154.39,26.4767]
[1721120454520,6.4745,154.46,154.39,20.0]
[1721120454705,1.61933349,154.45,154.39,20.0]
[1721120455023,8.09403349,154.45,154.4,6.4763]
[1721120455326,6.4755,154.43,154.41,20.0]
[1721120455510,6.4755,154.43,154.39,20.0]
[1721120455511,1.61925247,154.42,154.39,20.0]
[1721120456033,6.4746,154.45,154.39,26.477]
[1721120456333,22.6715,154.43,154.39,26.477]
[1721120456513,6.4764,154.41,154.39,20.0]
[1721120456714,6.4764,154.41,154.3,16.0452]
[1721120456715,1.61948207,154.4,154.36,20.0]
[1721120457019,1.61948207,154.4,154.36,16.1949]
[1721120457211,6.4749,154.45,154.37,20.0]
[1721120457526,6.4749,154.45,154.38,22.6703]
[1721120457527,6.4753,154.44,154.38,22.6703]
[1721120457733,32.3569,154.47,154.39,20.0]
[1721120457734,48.5412,154.47,154.39,20.0]
[1721120457899,6.4764,154.41,154.39,20.0]
[1721120458100,1.61943733,154.4,154.39,20.0]
[1721120458306,1.61943733,154.4,154.37,20.0]
[1721120458511,1.61953976,154.39,154.37,20.0]
[1721120458712,1.61951639,154.41,154.37,20.0]
[1721120458914,8.09581639,154.41,154.36,20.0]
[1721120459327,6.4767,154.4,154.36,20.0]
[1721120459534,1.61962659,154.39,154.36,20.0]
[1721120461620,1.61962659,154.39,154.35,16.1967]
[1721120461821,1.61962659,154.39,154.35,22.6753]
[1721120464010,1.61962659,154.39,154.36,6.4783]
[1721120464215,10.0,154.45,154.35,22.6754]
[1721120464519,10.0,154.43,154.33,6.4792]
[1721120464837,6.4771,154.39,154.33,6.4792]
[1721120465410,48.6,154.43,154.32,32.673]
[1721120465613,1.61973554,154.42,154.33,1.29578843]
[1721120465925,1.61973554,154.42,154.32,32.673]
[1721120466119,8.09593554,154.42,154.36,6.4783]
[1721120466537,6.4767,154.4,154.34,16.197]
[1721120466741,1.6197145,154.39,154.36,6.4783]
[1721120466907,8.09534619,154.42,154.36,6.4783]
[1721120467417,6.4763,154.41,154.36,6.4783]
[1721120467612,26.1873,154.45,154.36,6.4783]
[1721120467613,1.61953379,154.4,154.36,6.4783]
[1721120467838,1.61954225,154.39,154.36,6.4783]
[1721120468413,1.61954225,154.39,154.35,6.4787]
[1721120468839,1.61954677,154.4,154.35,6.4787]
[1721120469019,1.61954677,154.4,154.34,16.197]
[1721120469227,1.61969567,154.44,154.34,16.197]
[1721120469737,6.4772,154.39,154.34,16.197]
[1721120470819,6.4775,154.38,154.34,16.197]
[1721120471021,1.61980783,154.37,154.34,16.197]
[1721120471708,1.61980783,154.37,154.34,22.6761]
[1721120471930,6.4771,154.39,154.34,22.6761]
[1721120472821,48.6,154.43,154.35,6.4787]
[1721120472822,6.4766,154.41,154.35,6.4787]
[1721120473132,6.4771,154.39,154.34,22.6759]
[1721120473839,6.4766,154.4,154.34,22.6759]
[1721120474051,1.61970145,154.39,154.35,6.4786]
[1721120474237,1.61970145,154.39,154.35,6.4787]
[1721120474424,1.61970145,154.39,154.34,16.197]
[1721120474739,8.09680145,154.39,154.34,22.6761]
[1721120475121,1.61972721,154.38,154.34,22.6761]
[1721120476237,1.6196971,154.37,154.34,22.6761]
[1721120476418,8.09689861,154.39,154.34,22.6761]
[1721120477430,6.4776,154.38,154.32,22.9526]
[1721120477735,1.61997991,154.37,154.32,22.9526]
[1721120478547,1.61997991,154.37,154.32,6.4797]
[1721120478743,8.09787991,154.37,154.32,6.4797]
[1721120478952,1.6200098,154.36,154.32,6.4797]
[1721120479920,1.62000686,154.37,154.33,6.4795]
[1721120480933,1.62000686,154.37,154.31,16.2008]
[1721120480934,8.09810686,154.37,154.31,16.2008]
[1721120481129,1.62008867,154.36,154.29,6.4809]
[1721120481433,6.4788,154.35,154.3,6.4806]
[1721120481622,1.62025405,154.34,154.3,6.4806]
[1721120482735,1.62026029,154.33,154.31,6.4804]
[1721120482923,1.62019522,154.35,154.32,6.4799]
[1721120483127,6.4775,154.38,154.33,6.4795]
[1721120483321,1.61995906,154.37,154.33,6.4795]
[1721120484044,1.61995906,154.37,154.32,6.4799]
[1721120484434,1.61995906,154.37,154.33,6.4795]
[1721120486051,1.61995906,154.37,154.29,38.6]
[1721120486348,1.61965964,154.4,154.3,1.29572771]
[1721120486552,1.61965165,154.39,154.3,1.29572771]
[1721120486757,1.61965255,154.42,154.29,38.6]
[1721120487334,6.4774,154.39,154.34,16.1979]
[1721120487536,1.61976031,154.38,154.34,16.1979]
[1721120487852,1.61976031,154.38,154.34,22.6769]
[1721120488924,1.61976031,154.38,154.35,6.4787]
[1721120489133,1.61968935,154.39,154.35,6.4787]
[1721120489325,1.61968935,154.39,154.34,16.1979]
[1721120489326,8.09678935,154.39,154.34,22.677]
[1721120490161,6.4771,154.39,154.34,22.677]
[1721120490361,6.4776,154.38,154.34,16.1979]
[1721120490543,1.61983748,154.37,154.34,16.1979]
[1721120491237,1.61983748,154.37,154.34,22.6767]
[1721120491629,6.4771,154.39,154.34,22.6767]
[1721120491848,54.7892,154.43,154.34,16.1979]
[1721120492055,6.4766,154.41,154.36,6.4783]
[1721120492232,1.6196926,154.4,154.36,6.4779]
[1721120492752,8.0962926,154.4,154.35,6.4786]
[1721120493057,1.6196926,154.4,154.36,6.4783]
[1721120493668,1.6196926,154.4,154.37,6.4779]
[1721120493836,1.61953672,154.41,154.37,6.4779]
[1721120494628,8.09583672,154.41,154.36,6.4783]
[1721120494842,6.4763,154.41,154.36,6.4783]
[1721120496155,21.6976,154.45,154.32,38.6]
[1721120496460,1.61957758,154.44,154.39,6.477]
[1721120496639,8.09467758,154.44,154.38,6.4774]
[1721120497207,1.61957758,154.44,154.39,22.6687]
[1721120497455,8.09467758,154.44,154.39,22.6687]
[1721120497662,1.61924448,154.43,154.39,22.6687]
[1721120497835,1.61924251,154.42,154.4,6.4765]
[1721120498034,1.61923194,154.44,154.4,6.4765]
[1721120499047,8.09433194,154.44,154.39,22.6688]
[1721120499347,1.61924201,154.43,154.39,22.6688]
[1721120500932,1.61924201,154.43,154.4,6.4766]
[1721120501137,1.61922927,154.45,154.44,6.475]
[1721120501358,1.61881311,154.47,154.45,6.4742]
[1721120501666,21.6664,154.52,154.45,6.4742]
[1721120501667,8.0912579,154.5,154.45,6.4742]
[1721120502179,1.6187579,154.5,154.46,6.4741]
[1721120502371,1.6187579,154.5,154.46,25.8241]
[1721120502549,1.6187579,154.5,154.45,25.8245]
[1721120503042,1.6187579,154.5,154.44,16.1864]
[1721120503043,1.6187579,154.5,154.47,6.4736]
[1721120503556,1.6187579,154.5,154.45,6.4745]
[1721120503768,20.9687579,154.5,154.45,6.4745]
[1721120503944,20.9687579,154.5,154.44,16.1864]
[1721120503945,6.4734,154.48,154.44,16.1864]
[1721120504262,1.61879359,154.47,154.44,16.1864]
[1721120506356,1.61885562,154.48,154.44,16.1864]
[1721120506740,1.61885562,154.48,154.46,6.4738]
[1721120507245,6.4721,154.51,154.46,6.4738]
[1721120507457,1.61871062,154.5,154.46,6.4738]
[1721120507643,8.09111062,154.5,154.45,6.4745]
[1721120509460,8.09111062,154.5,154.44,16.1864]
[1721120509461,1.61871062,154.5,154.46,6.4741]
[1721120509760,8.09078341,154.51,154.46,6.4741]
[1721120509943,6.4724,154.5,154.45,6.4744]
[1721120510142,1.61871817,154.49,154.45,6.4744]
[1721120510343,1.61871817,154.49,154.46,6.4741]
[1721120510569,1.61871817,154.49,154.47,6.4735]
[1721120510858,1.61857717,154.51,154.46,6.4741]
[1721120512463,1.61857717,154.51,154.44,22.661]
[1721120512766,6.4728,154.5,154.44,22.661]
[1721120512973,1.61876405,154.49,154.44,22.661]
[1721120513843,1.61876405,154.49,154.45,6.4743]
[1721120514160,8.09186405,154.49,154.44,22.6613]
[1721120515342,1.61876405,154.49,154.45,6.4745]
[1721120515655,1.6188005,154.48,154.45,6.4745]
[1721120516282,1.6188005,154.48,154.46,6.4741]
[1721120516450,1.61874336,154.5,154.46,6.4741]
[1721120516967,1.61874336,154.5,154.47,6.4737]
[1721120517174,1.61874336,154.5,154.48,6.4732]
[1721120517382,1.61854931,154.51,154.48,6.4732]
[1721120517681,1.61854931,154.51,154.47,6.4736]
[1721120518250,1.61854931,154.51,154.48,16.1823]
[1721120518456,1.61838126,154.54,154.51,6.4719]
[1721120518656,1.61838126,154.54,154.5,6.4724]
[1721120519076,8.08928126,154.54,154.48,22.6552]
[1721120519471,6.4716,154.52,154.48,16.1823]
[1721120519776,1.61840897,154.51,154.48,22.6555]
[1721120519984,1.61840016,154.54,154.48,22.6555]
[1721120520369,6.4712,154.53,154.48,22.6555]
[1721120520680,1.61839959,154.52,154.49,6.4728]
[1721120521181,8.09009959,154.52,154.48,16.1823]
[1721120521382,1.61839959,154.52,154.45,6.4744]
[1721120521886,6.4725,154.5,154.45,6.4744]
[1721120522053,1.61869843,154.49,154.45,6.4744]
[1721120522258,6.4733,154.48,154.44,16.1865]
[1721120522486,10.0,154.46,154.36,15.115]
[1721120522685,10.0,154.46,154.38,6.4771]
[1721120522686,8.09447078,154.45,154.38,6.4771]
[1721120522868,6.4751,154.44,154.38,6.4771]
[1721120523066,1.61948244,154.43,154.38,6.4771]
[1721120523285,1.6194758,154.42,154.38,6.4771]
[1721120523867,1.6194758,154.42,154.39,6.477]
[1721120524376,1.6194758,154.42,154.38,6.4775]
[1721120524785,1.6194758,154.42,154.39,6.477]
[1721120524982,1.6194758,154.42,154.37,16.1939]
[1721120525184,1.61939817,154.41,154.37,16.1939]
[1721120525385,1.61939666,154.44,154.37,16.1939]
[1721120525589,1.61939666,154.44,154.39,6.477]
[1721120525784,8.09449666,154.44,154.39,6.477]
[1721120526098,8.09449666,154.44,154.37,22.6714]
[1721120526273,8.09449666,154.44,154.38,6.4773]
[1721120526598,1.61939666,154.44,154.39,6.4768]
[1721120526782,8.09449666,154.44,154.39,6.4768]
[1721120527700,8.09449666,154.44,154.38,6.4774]
[1721120529003,17.54409666,154.44,154.37,22.6717]
[1721120529690,6.4754,154.43,154.37,22.6717]
[1721120529902,1.6195133,154.42,154.37,22.6717]
[1721120530106,1.6195133,154.42,154.38,6.4772]
[1721120531188,8.0954133,154.42,154.37,16.1939]
[1721120531388,6.5357,154.41,154.35,6.4787]
[1721120531587,1.61982898,154.4,154.35,6.4787]
[1721120531779,1.61980361,154.39,154.34,6.4791]
[1721120533300,8.09690361,154.39,154.34,6.4791]
[1721120533505,8.09690361,154.39,154.33,22.6776]
[1721120534309,8.09690361,154.39,154.34,6.479]
[1721120534482,1.61980361,154.39,154.34,6.479]
[1721120535789,1.61980361,154.39,154.35,6.4786]
[1721120538221,19.38,154.38,154.35,6.4786]
[1721120538394,1.61977422,154.37,154.35,6.4786]
[1721120539020,1.61977422,154.37,154.34,6.4791]
[1721120540819,19.38,154.37,154.34,6.4791]
[1721120541118,1.61981268,154.36,154.34,6.4791]
[1721120542112,1.61981084,154.39,154.35,6.4787]
[1721120542317,20.99981084,154.39,154.35,6.4787]
[1721120542507,1.61981084,154.39,154.36,19.38]
[1721120542711,20.99942554,154.41,154.38,6.4775]
[1721120542903,20.99942554,154.41,154.37,6.4778]
[1721120543203,19.38,154.39,154.35,22.6745]
[1721120543420,20.99971641,154.38,154.35,16.1962]
[1721120543604,1.61971641,154.38,154.36,6.478]
[1721120543809,6.4764,154.41,154.36,6.478]
[1721120543810,20.99958424,154.4,154.36,6.478]
[1721120544118,20.99958424,154.4,154.35,22.6749]
[1721120544119,20.99958424,154.39,154.35,22.6749]
[1721120545231,20.99958424,154.39,154.35,16.1962]
[1721120545412,19.38,154.38,154.35,16.1962]
[1721120545609,20.99974679,154.37,154.35,16.1962]
[1721120546117,20.99974679,154.37,154.33,6.4795]
[1721120546497,20.99974679,154.37,154.34,6.4791]
[1721120546722,19.38,154.36,154.32,16.1999]
[1721120546925,1.61990766,154.35,154.32,16.1999]
[1721120547101,6.4775,154.39,154.32,35.5799]
[1721120547102,19.38,154.37,154.32,35.5799]
[1721120547307,1.61990726,154.36,154.34,6.4788]
[1721120547525,1.61990726,154.36,154.35,6.4787]
[1721120547728,1.61979643,154.37,154.35,6.4787]
[1721120548325,39.11778572,154.46,154.37,15.5773]
[1721120548326,1.61984872,154.42,154.37,15.5773]
[1721120548512,20.99921198,154.45,154.41,6.4759]
[1721120548825,20.99921198,154.45,154.41,22.6665]
[1721120549700,19.38,154.43,154.38,22.6707]
[1721120549926,1.61933742,154.42,154.38,42.0507]
[1721120550235,1.61933742,154.42,154.4,6.4765]
[1721120550404,1.61933742,154.42,154.37,15.5773]
[1721120550405,6.74618572,154.46,154.42,6.4757]
[1721120550604,19.38,154.44,154.39,19.38]
[1721120551311,19.38,154.44,154.41,6.4761]
[1721120552023,19.38,154.46,154.41,35.5706]
[1721120552227,15.9806,154.48,154.41,35.5706]
[1721120552410,19.38,154.46,154.42,6.4758]
[1721120552723,1.61902992,154.45,154.43,6.4751]
[1721120553327,1.61902992,154.45,154.42,25.8557]
[1721120553538,1.61902992,154.45,154.41,16.1906]
[1721120553735,20.99902992,154.45,154.41,16.1906]
[1721120554834,20.99902992,154.45,154.41,22.6667]
[1721120555432,1.61902992,154.45,154.41,22.6667]
[1721120555637,20.99902992,154.45,154.41,22.6667]
[1721120556213,1.61902992,154.45,154.41,22.6667]
[1721120556514,1.61902992,154.45,154.42,6.4758]
[1721120557035,1.61902992,154.45,154.44,22.6625]
[1721120557254,1.61878363,154.48,154.45,6.4744]
[1721120557433,1.61878363,154.48,154.44,16.1875]
[1721120557434,20.99878363,154.48,154.44,22.6624]
[1721120557637,1.61878363,154.48,154.44,22.6624]
[1721120557936,1.61878363,154.48,154.43,19.38]
[1721120557937,1.61874046,154.49,154.47,6.4737]
[1721120558118,1.61846737,154.52,154.5,6.4724]
[1721120558318,1.61813691,154.55,154.51,6.4717]
[1721120558514,1.61813691,154.55,154.49,19.38]
[1721120558714,19.38,154.54,154.49,19.38]
[1721120558938,1.61817211,154.53,154.5,6.4724]
[1721120559137,1.61817211,154.53,154.49,25.8528]
[1721120559713,20.99817211,154.53,154.48,42.0358]
[1721120559917,27.46967211,154.53,154.48,16.1826]
[1721120560117,1.61818389,154.52,154.48,42.0356]
[1721120560349,8.08978389,154.52,154.48,16.1826]
[1721120560647,27.46978389,154.52,154.48,16.1826]
[1721120560845,19.38,154.51,154.48,16.1826]
[1721120561019,1.61835891,154.55,154.48,16.1826]
[1721120561352,19.38,154.53,154.49,6.4725]
[1721120561648,19.38,154.53,154.48,16.1826]
[1721120561649,1.61816942,154.52,154.48,16.1826]
[1721120561861,1.61834253,154.51,154.48,16.1826]
[1721120562143,1.61818802,154.55,154.49,19.38]
[1721120562323,1.61796922,154.54,154.51,25.852]
[1721120562523,20.99792382,154.56,154.51,25.852]
[1721120563340,20.99792382,154.56,154.51,42.0319]
[1721120563736,1.61792382,154.56,154.52,19.38]
[1721120563935,1.61792382,154.56,154.52,25.8513]
[1721120564152,1.61771493,154.57,154.52,25.8513]
[1721120564328,1.61771493,154.57,154.53,6.4709]
[1721120564519,1.61771493,154.57,154.54,6.4707]
[1721120564720,1.61758991,154.59,154.54,6.4707]
[1721120564944,8.08638991,154.59,154.53,6.4711]
[1721120565533,1.61758991,154.59,154.55,6.4703]
[1721120566047,1.61758991,154.59,154.54,6.4708]
[1721120566543,8.08628991,154.59,154.53,22.6483]
[1721120567929,6.4699,154.57,154.5,38.9523]
[1721120568127,8.08785133,154.56,154.5,32.4802]
[1721120568325,8.08841623,154.55,154.5,32.4802]
[1721120568553,1.61799791,154.54,154.5,32.4802]
[1721120569075,1.61799791,154.54,154.5,38.9525]
[1721120569950,1.61799791,154.54,154.5,22.6533]
[1721120570866,8.08859456,154.55,154.5,22.6533]
[1721120571175,6.4708,154.54,154.5,16.181]
[1721120571382,1.61812866,154.53,154.47,6.4734]
[1721120571739,6.4717,154.52,154.47,16.1842]
[1721120571940,1.61842475,154.51,154.47,16.1842]
[1721120572442,6.4725,154.5,154.45,6.4743]
[1721120572644,1.61856951,154.49,154.45,6.4743]
[1721120572841,6.4725,154.5,154.45,6.4743]
[1721120572842,1.61856933,154.48,154.45,6.4743]
[1721120573844,1.6185679,154.47,154.44,22.6622]
[1721120574039,1.61875564,154.52,154.44,22.6622]
[1721120574463,8.36298786,154.51,154.44,22.6622]
[1721120574659,16.3711,154.5,154.44,22.6622]
[1721120574863,1.61875458,154.49,154.44,22.6622]
[1721120575040,22.8436,154.5,154.44,22.6622]
[1721120575041,1.61875413,154.48,154.45,6.4744]
[1721120575759,1.61875413,154.48,154.44,16.1873]
[1721120576256,1.6186194,154.47,154.45,6.4745]
[1721120576578,1.6186194,154.47,154.44,16.1873]
[1721120576877,1.6186194,154.47,154.36,60.9965]
[1721120576878,1.6186194,154.47,154.4,16.1907]
[1721120577073,1.61887506,154.46,154.42,6.4754]
[1721120577281,1.61887506,154.46,154.41,6.4762]
[1721120577282,8.09317506,154.46,154.41,6.4762]
[1721120577772,1.61887506,154.46,154.42,6.4757]
[1721120578279,1.61887506,154.46,154.4,22.6672]
[1721120578450,1.61902424,154.48,154.4,22.6672]
[1721120579075,6.475,154.44,154.4,16.1907]
[1721120579279,1.61923949,154.43,154.39,6.477]
[1721120579567,6.4753,154.44,154.38,6.4774]
[1721120579767,1.61930311,154.43,154.39,6.4769]
[1721120580070,1.61930311,154.43,154.36,15.7036]
[1721120580243,38.66,154.47,154.39,6.4768]
[1721120580244,6.4747,154.45,154.39,6.4768]
[1721120580449,6.4771,154.39,154.33,6.4795]
[1721120580672,1.61983778,154.38,154.31,16.2008]
[1721120580975,8.09638385,154.4,154.34,22.6765]
[1721120581167,1.61970073,154.39,154.34,22.6765]
[1721120581470,1.61970073,154.39,154.34,16.1974]
[1721120581471,8.09700073,154.39,154.34,16.1974]
[1721120581972,1.61970073,154.39,154.3,16.2165]
[1721120582275,6.4776,154.38,154.3,16.2165]
[1721120582577,1.61995716,154.37,154.3,16.2165]
[1721120583368,6.4787,154.36,154.29,6.481]
[1721120583574,1.62015121,154.35,154.3,16.2014]
[1721120583973,1.61987206,154.34,154.3,16.2014]
[1721120584175,6.4792,154.34,154.3,16.2014]
[1721120584351,1.62012874,154.33,154.3,16.2014]
[1721120584554,6.4775,154.38,154.33,6.4796]
[1721120584757,1.62000429,154.37,154.33,6.4796]
[1721120584950,1.62000429,154.37,154.32,6.48]
[1721120585169,1.62000429,154.37,154.31,6.48]
[1721120585170,8.09810429,154.37,154.31,6.48]